Cogmind - Beta 10 X2 @@@ ROGUE MODE // 2020.08.24 @ 15:21:56 Player: lsend Result: Destroyed by Y-64 Sentinel with Wave Gun Performance ------------- Evolutions (4) 2000 Regions Visited (13) 2600 Robots Destroyed (5) 25 Value Destroyed (129) 129 Prototype IDs (29) 580 Alien Tech Used (0) 0 Bonus (1391) 1391 TOTAL SCORE: 6725 Bonus ------- Follower Combat Kills 1091 Aligned with FarCom 300 Cogmind --------- Core Integrity 0/850 Matter 105/300 Energy 99/100 System Corruption 3% Temperature Cool (9) Movement Core (50) Location -6/Archives Parts ------- > --- POWER (2) -------- (None) > --- PROPULSION (4) --- (None) > --- UTILITY (7) ------ Enhanced Optical Array Advanced Signal Interpreter Modified TNC > --- WEAPON (2) ------- (None) > --- INVENTORY (4) ---- Weight Redist. System Advanced Weight Redist. System Advanced Weight Redist. System Peak State ------------ > --- POWER ------------ Ion Engine > --- PROPULSION ------- Light Treads Flight Unit > --- UTILITY ---------- Army-in-a-Box > --- WEAPON ----------- Heavy Laser Flak Gun > --- INVENTORY -------- Cesium-ion Thruster Structural Scanner Modified TNC [Rating: 66] Favorites ----------- Power Ion Engine Engine Ion Engine Power Core Light Nuclear Core Propulsion Light Treads Treads Light Treads Leg Aluminum Leg Flight Unit Improved Flight Unit Utility Army-in-a-Box Device Army-in-a-Box Storage Medium Storage Unit Processor Advanced Signal Interpreter Protection Improved Medium Armor Plating Weapon Scythe Energy Gun Heavy Laser Ballistic Gun Flak Gun Slashing Weapon Scythe Build | -11 -10 -10 -10 -9 -8 -8 -7 -7 -7 -6 -6 -6 -6 ------- Run | Scr Mat Min Exi Min Mat Sto Fac Was Fac Fac Ext Cet Arc Slots Evolved 8 | . . . . . 4 . 2 . . 2 . . . Power 1 | . . . . . . . . . . 1 . . . Propulsion 2 | . . . . . . . 2 . . . . . . Utility 5 | . . . . . 4 . . . . 1 . . . Weapon . | . . . . . . . . . . . . . . Parts Attached 39 | 2 1 3 2 4 3 4 2 . 13 4 1 . . Power 6 | . . . . 1 . . . . 2 2 1 . . Engine 3 | . . . . 1 . . . . 2 . . . . Core 3 | . . . . . . . . . . 2 1 . . Reactor . | . . . . . . . . . . . . . . Propulsion 13 | 2 . . . 1 2 2 . . 4 2 . . . Treads 4 | 2 . . . . 1 1 . . . . . . . Leg 1 | . . . . 1 . . . . . . . . . Wheel . | . . . . . . . . . . . . . . Hover . | . . . . . . . . . . . . . . Flight 8 | . . . . . 1 1 . . 4 2 . . . Utility 16 | . 1 2 2 . 1 1 2 . 7 . . . . Device 6 | . . 2 1 . 1 . . . 2 . . . . Storage 1 | . . . 1 . . . . . . . . . . Processor 3 | . . . . . . . 2 . 1 . . . . Hackware . | . . . . . . . . . . . . . . Protection 6 | . 1 . . . . 1 . . 4 . . . . Artifact . | . . . . . . . . . . . . . . Weapon 4 | . . 1 . 2 . 1 . . . . . . . Energy Gun 1 | . . . . 1 . . . . . . . . . Energy Cannon . | . . . . . . . . . . . . . . Ballistic Gun 1 | . . . . 1 . . . . . . . . . Ballistic Cannon . | . . . . . . . . . . . . . . Launcher . | . . . . . . . . . . . . . . Special Weapon . | . . . . . . . . . . . . . . Impact Weapon . | . . . . . . . . . . . . . . Slashing Weapon 2 | . . 1 . . . 1 . . . . . . . Piercing Weapon . | . . . . . . . . . . . . . . Special Melee Weapon . | . . . . . . . . . . . . . . Unidentified Prototypes 3 | . . 1 . . . 1 . . 1 . . . . Parts Lost 15 | . . . . 1 . 2 . . 2 . 9 1 . Power 4 | . . . . . . 1 . . . . 3 . . Propulsion 7 | . . . . 1 . 1 . . 1 . 3 1 . Utility 3 | . . . . . . . . . 1 . 2 . . Weapon 1 | . . . . . . . . . . . 1 . . Highest Loss Streak 9 | . . . . 1 . 2 . . 2 . 9 1 . Average Slot Usage (%) 49 | . 29 32 56 84 53 42 38 38 77 68 63 21 20 Engine 4 | . . . . 5 9 8 . . 6 2 . . . Treads 13 | . 28 28 28 20 8 8 . . . . . . . Flight 6 | . . . . . 8 9 7 7 20 16 20 1 . Device 6 | . . 3 4 14 8 8 . . 7 6 4 . . Storage 1 | . . . 9 14 . . . . . . . . . Processor 3 | . . . . . . . 15 15 21 20 20 20 20 Protection 1 | . 1 . . . . . 7 7 12 6 4 . . Energy Gun 1 | . . . . 10 9 . . . . . . . . Ballistic Gun 1 | . . . . 10 9 . . . . . . . . Slashing Weapon 5 | . . 1 14 3 . 8 7 7 7 6 4 . . Naked Turns . | . . . . . . . . . . . . . . Heaviest Build 93 | . 1 14 11 22 93 93 5 5 17 20 20 . . Greatest Support 30 | 3 3 3 20 20 20 20 6 6 21 29 30 6 3 Greatest Overweight (x) 30 | . . 4 3 1 30 14 . . . . . . . Average Overweight (x) . | . . . . . 4 3 . . . . . . . Largest Inventory Capacity 8 | 4 4 4 8 8 8 4 4 4 4 4 4 4 4 Average Capacity 4 | 4 4 4 6 8 4 4 4 4 4 4 4 4 4 Most Carried 8 | . 1 3 8 8 8 4 3 2 4 4 4 3 3 Average Carried 3 | . . 2 4 8 2 3 2 2 1 3 3 3 3 Final Capacity 8 | 4 4 4 8 8 4 4 4 4 4 4 4 4 4 Final Carried 8 | . 1 3 8 8 3 4 2 2 4 4 3 3 3 Class Distribution -------------------- 87% | Mutant 12% | Sprinter Dominant Class ---------------- Mutant | -10/Materials Mutant | -10/Mines Mutant | -10/Exiles Mutant | -9/Mines Mutant | -8/Materials Mutant | -8/Storage Mutant | -7/Factory Mutant | -7/Waste Sprinter | -7/Factory Sprinter | -6/Factory Sprinter | -6/Extension Mutant | -6/Cetus Mutant | -6/Archives Resources | -11 -10 -10 -10 -9 -8 -8 -7 -7 -7 -6 -6 -6 -6 ----------- Run | Scr Mat Min Exi Min Mat Sto Fac Was Fac Fac Ext Cet Arc Matter Collected 407 | 170 . 59 . 104 44 30 . . . . . . . Remotely . | . . . . . . . . . . . . . . Salvage Created 182 | . . . . 77 . 105 . . . . . . . Parts 10 | . . . . 4 . 6 . . . . . . . Haulers Intercepted . | . . . . . . . . . . . . . . Recyclers Shooed 1 | . . . . 1 . . . . . . . . . Parts Field Recycled . | . . . . . . . . . . . . . . Retrieved Matter . | . . . . . . . . . . . . . . Parts Self-Destructed . | . . . . . . . . . . . . . . Prevented . | . . . . . . . . . . . . . . Kills | -11 -10 -10 -10 -9 -8 -8 -7 -7 -7 -6 -6 -6 -6 ------- Run | Scr Mat Min Exi Min Mat Sto Fac Was Fac Fac Ext Cet Arc Combat Hostiles Destroyed 3 | . . 1 . 2 . . . . . . . . . Melee 1 | . . 1 . . . . . . . . . . . Guns 2 | . . . . 2 . . . . . . . . . Classes Destroyed 4 | . . 1 . 1 . 2 . . . . . . . Builder 1 | . . . . . . 1 . . . . . . . Recycler 1 | . . . . . . 1 . . . . . . . Grunt 2 | . . . . 2 . . . . . . . . . Assembled 1 | . . 1 . . . . . . . . . . . Best Kill Streak 2 | . . 1 . 2 . 1 . . . . . . . Combat Bots Only 2 | . . 1 . 2 . . . . . . . . . Max Kills in Single Turn 1 | . . 1 . 1 . 1 . . . . . . . Gunslinging . | . . . . . . . . . . . . . . Exploded . | . . . . . . . . . . . . . . Melee 1 | . . 1 . . . . . . . . . . . Uniques/NPCs Destroyed . | . . . . . . . . . . . . . . Combat | -11 -10 -10 -10 -9 -8 -8 -7 -7 -7 -6 -6 -6 -6 -------- Run | Scr Mat Min Exi Min Mat Sto Fac Was Fac Fac Ext Cet Arc Damage Taken 2258 | . 83 156 . 172 40 134 . . 266 192 608 343 264 Core 1100 | . 18 29 . 33 . 44 . . 113 5 275 319 264 Absorbed by Shields . | . . . . . . . . . . . . . . Core Remaining (%) 85 | 100 . . . 68 . 92 . . 83 . . . . Volleys Fired 7 | . . . . 7 . . . . . . . . . Largest 2 | . . . . 2 . . . . . . . . . Hottest 97 | . . . . 97 . . . . . . . . . Shots Fired 14 | . . . . 14 . . . . . . . . . Gun 14 | . . . . 14 . . . . . . . . . Cannon . | . . . . . . . . . . . . . . Launcher . | . . . . . . . . . . . . . . Special . | . . . . . . . . . . . . . . Kinetic 7 | . . . . 7 . . . . . . . . . Thermal 7 | . . . . 7 . . . . . . . . . Explosive . | . . . . . . . . . . . . . . Electromagnetic . | . . . . . . . . . . . . . . Robot Hit Streak 5 | . . . . 5 . . . . . . . . . Robot Miss Streak 3 | . . . . 3 . . . . . . . . . Penetration Max . | . . . . . . . . . . . . . . Secondary Targets . | . . . . . . . . . . . . . . Shots Hit Robots 12 | . . . . 10 . 2 . . . . . . . Core Hits 7 | . . . . 5 . 2 . . . . . . . Critical Hits . | . . . . . . . . . . . . . . Critical Kills . | . . . . . . . . . . . . . . Critical Parts Destroyed . | . . . . . . . . . . . . . . Melee Attacks 25 | . . 7 . . . 6 . 6 6 . . . . Impact . | . . . . . . . . . . . . . . Slashing 25 | . . 7 . . . 6 . 6 6 . . . . Piercing . | . . . . . . . . . . . . . . Sneak Attacks 2 | . . . . . . 2 . . . . . . . Combat Hostiles . | . . . . . . . . . . . . . . Follow-up Attacks . | . . . . . . . . . . . . . . Damage Inflicted 330 | . . 1 . 145 . 184 . . . . . . . Guns 145 | . . . . 145 . . . . . . . . . Cannons . | . . . . . . . . . . . . . . Explosions . | . . . . . . . . . . . . . . Melee 184 | . . . . . . 184 . . . . . . . Ramming 1 | . . 1 . . . . . . . . . . . Kinetic 71 | . . . . 71 . . . . . . . . . Thermal 74 | . . . . 74 . . . . . . . . . Explosive . | . . . . . . . . . . . . . . Electromagnetic . | . . . . . . . . . . . . . . Impact . | . . . . . . . . . . . . . . Slashing 184 | . . . . . . 184 . . . . . . . Piercing . | . . . . . . . . . . . . . . Highest Corruption 16 | . . . . . . . . 15 16 3 3 3 3 Average Corruption 9 | . . . . . . . . 7 15 2 3 3 3 Corruption Purged . | . . . . . . . . . . . . . . Effects 37 | . . . . . . . . 6 25 2 3 1 . Message Errors 9 | . . . . . . . . 3 4 1 1 . . Matter Fused 6 | . . . . . . . . . 3 . 2 1 . Heat Flow Errors 4 | . . . . . . . . . 3 1 . . . Energy Discharges 1 | . . . . . . . . 1 . . . . . Data Loss (minor) 1 | . . . . . . . . 1 . . . . . Data Loss (major) 2 | . . . . . . . . . 2 . . . . Misdirections 11 | . . . . . . . . . 11 . . . . Targeting Errors 3 | . . . . . . . . 1 2 . . . . Overload Shots . | . . . . . . . . . . . . . . Overflow Damage . | . . . . . . . . . . . . . . Projectiles . | . . . . . . . . . . . . . . Explosions . | . . . . . . . . . . . . . . Melee . | . . . . . . . . . . . . . . Knockbacks . | . . . . . . . . . . . . . . Impact . | . . . . . . . . . . . . . . Kinetic . | . . . . . . . . . . . . . . Secondary . | . . . . . . . . . . . . . . Self-Inflicted Damage . | . . . . . . . . . . . . . . Shots . | . . . . . . . . . . . . . . Rammed . | . . . . . . . . . . . . . . Targets Rammed 1 | . . 1 . . . . . . . . . . . Kicked . | . . . . . . . . . . . . . . Crushed 1 | . . 1 . . . . . . . . . . . Highest Temperature 265 | . . . . 219 . . . . 265 239 10 . . Average Temperature 112 | . . . . 113 . . . . 119 108 6 . . Received Heat Transfer 431 | . 45 . . 96 . 20 . . 90 18 72 36 54 Siege Activations . | . . . . . . . . . . . . . . Robots Corrupted . | . . . . . . . . . . . . . . Combat Hostiles . | . . . . . . . . . . . . . . Parts Fried . | . . . . . . . . . . . . . . Impact Corruptions . | . . . . . . . . . . . . . . Robots Melted . | . . . . . . . . . . . . . . Combat Hostiles . | . . . . . . . . . . . . . . Parts Melted . | . . . . . . . . . . . . . . Heat Transferred 148 | . . . . 148 . . . . . . . . . Parts Sabotaged . | . . . . . . . . . . . . . . Parts Stolen . | . . . . . . . . . . . . . . Parts Stripped . | . . . . . . . . . . . . . . Power Chain Reactions . | . . . . . . . . . . . . . . Missiles Intercepted . | . . . . . . . . . . . . . . Alert | -11 -10 -10 -10 -9 -8 -8 -7 -7 -7 -6 -6 -6 -6 ------- Run | Scr Mat Min Exi Min Mat Sto Fac Was Fac Fac Ext Cet Arc Peak Influence 1140 | . 75 28 . 50 639 1140 450 189 304 182 203 86 90 Average Influence 297 | . 43 16 . 26 150 790 450 171 190 162 121 76 50 Maximum Alert Level 4 | . . . . . 2 4 2 . 1 . 1 . . Low Security (%) 65 | 100 100 100 . 100 80 . . 100 81 100 99 100 100 Level 1 8 | . . . . . 11 16 . . 18 . . . . Level 2 7 | . . . . . 8 20 100 . . . . . . Level 3 12 | . . . . . . 44 . . . . . . . Level 4 5 | . . . . . . 18 . . . . . . . Level 5 . | . . . . . . . . . . . . . . High Security . | . . . . . . . . . . . . . . Max Security . | . . . . . . . . . . . . . . Squads Dispatched 13 | . 1 . . 1 3 7 . . . 1 . . . Investigation 4 | . . . . 1 . 2 . . . 1 . . . Extermination . | . . . . . . . . . . . . . . Reinforcement 3 | . 1 . . . 1 1 . . . . . . . Assault 1 | . . . . . . 1 . . . . . . . Garrison 5 | . . . . . 2 3 . . . . . . . Intercept . | . . . . . . . . . . . . . . Construction Impeded . | . . . . . . . . . . . . . . Haulers Reinforced . | . . . . . . . . . . . . . . Stealth | -11 -10 -10 -10 -9 -8 -8 -7 -7 -7 -6 -6 -6 -6 --------- Run | Scr Mat Min Exi Min Mat Sto Fac Was Fac Fac Ext Cet Arc Distress Signals 3 | . . . . . 1 . . . . . 1 1 . Communications Jammed . | . . . . . . . . . . . . . . Distress Signals . | . . . . . . . . . . . . . . Times Spotted 89 | . 6 3 . 4 1 22 . 8 20 6 10 5 4 Peak Tracking Total 10 | . 5 2 . 2 1 8 . 6 8 5 10 5 4 Tactical Retreats 9 | . . 2 . . . . . 1 4 2 . . . Traps | -11 -10 -10 -10 -9 -8 -8 -7 -7 -7 -6 -6 -6 -6 ------- Run | Scr Mat Min Exi Min Mat Sto Fac Was Fac Fac Ext Cet Arc Traps Triggered 8 | . . . . . . . 1 . 3 2 2 . . Indirectly . | . . . . . . . . . . . . . . Trap Hack Attempts . | . . . . . . . . . . . . . . Triggered . | . . . . . . . . . . . . . . Disarmed . | . . . . . . . . . . . . . . Reprogrammed . | . . . . . . . . . . . . . . Reused . | . . . . . . . . . . . . . . Traps Extracted . | . . . . . . . . . . . . . . Installed . | . . . . . . . . . . . . . . Triggered . | . . . . . . . . . . . . . . Machines | -11 -10 -10 -10 -9 -8 -8 -7 -7 -7 -6 -6 -6 -6 ---------- Run | Scr Mat Min Exi Min Mat Sto Fac Was Fac Fac Ext Cet Arc Machines Disabled 5 | . . . . . . 5 . . . . . . . Max in Single Turn 1 | . . . . . . 1 . . . . . . . Machines Sabotaged . | . . . . . . . . . . . . . . Garrisons Compromised . | . . . . . . . . . . . . . . Overloaded Fab Kills . | . . . . . . . . . . . . . . Fab Network Shutdowns . | . . . . . . . . . . . . . . Hacking | -11 -10 -10 -10 -9 -8 -8 -7 -7 -7 -6 -6 -6 -6 --------- Run | Scr Mat Min Exi Min Mat Sto Fac Was Fac Fac Ext Cet Arc Machines Accessed 25 | . 4 1 1 1 4 5 . . 6 2 1 . . Terminals 20 | . 4 . . . 4 5 . . 4 2 1 . . Fabricators . | . . . . . . . . . . . . . . Repair Stations . | . . . . . . . . . . . . . . Recycling Units 2 | . . . . . . . . . 2 . . . . Scanalyzers . | . . . . . . . . . . . . . . Garrison Access . | . . . . . . . . . . . . . . Total Hacks 59 | . 13 1 1 1 8 13 . . 16 4 2 . . Successful 27 | . 7 1 1 1 2 5 . . 8 1 1 . . Failed 32 | . 6 . . . 6 8 . . 8 3 1 . . Catastrophic 4 | . . . . . 2 . . . 1 1 . . . Database Lockouts . | . . . . . . . . . . . . . . Manual 15 | . 5 . 1 . 6 1 . . 2 . . . . Terminals 51 | . 13 . . . 8 13 . . 11 4 2 . . Fabricators . | . . . . . . . . . . . . . . Repair Stations . | . . . . . . . . . . . . . . Recycling Units 5 | . . . . . . . . . 5 . . . . Scanalyzers . | . . . . . . . . . . . . . . Garrison Access . | . . . . . . . . . . . . . . Terminal Hacks 21 | . 6 1 1 1 2 4 . . 4 1 1 . . Prototype ID Bank 1 | . . . . . . 1 . . . . . . . Open Door 5 | . . 1 . 1 . 1 . . . 1 1 . . Level Access Points 1 | . 1 . . . . . . . . . . . . Branch Access Points 2 | . 1 . . . 1 . . . . . . . . Emergency Access Points 1 | . 1 . . . . . . . . . . . . Terminal Index 2 | . 1 . . . 1 . . . . . . . . Unreport Threat 1 | . . . . . . 1 . . . . . . . Locate Traps 2 | . . . . . . . . . 2 . . . . Zone Layout 5 | . 2 . . . . 1 . . 2 . . . . EX-Prototype ID Bank 1 | . . . 1 . . . . . . . . . . Fabricator Hacks . | . . . . . . . . . . . . . . Repair Station Hacks . | . . . . . . . . . . . . . . Recycling Unit Hacks 3 | . . . . . . . . . 3 . . . . Retrieve Components 3 | . . . . . . . . . 3 . . . . Scanalyzer . | . . . . . . . . . . . . . . Garrison Access Hacks . | . . . . . . . . . . . . . . Unauthorized Hacks 3 | . 1 . . . . 1 . . 1 . . . . Terminals 3 | . 1 . . . . 1 . . 1 . . . . Assimilate 1 | . . . . . . . . . 1 . . . . Botnet 2 | . 1 . . . . 1 . . . . . . . Fabricators . | . . . . . . . . . . . . . . Repair Stations . | . . . . . . . . . . . . . . Recycling Units . | . . . . . . . . . . . . . . Scanalyzers . | . . . . . . . . . . . . . . Garrison Access . | . . . . . . . . . . . . . . Data Cores Recovered . | . . . . . . . . . . . . . . Used . | . . . . . . . . . . . . . . Hacking Detections 20 | . 4 . . . 4 5 . . 6 1 . . . Full Trace Events 2 | . . . . . . 1 . . . 1 . . . Feedback Events . | . . . . . . . . . . . . . . Feedback Blocked . | . . . . . . . . . . . . . . Robot Schematics Acquired . | . . . . . . . . . . . . . . Robots Built . | . . . . . . . . . . . . . . Matter . | . . . . . . . . . . . . . . Time . | . . . . . . . . . . . . . . Total Robot Build Rating . | . . . . . . . . . . . . . . Part Schematics Acquired . | . . . . . . . . . . . . . . Parts Built . | . . . . . . . . . . . . . . Matter . | . . . . . . . . . . . . . . Time . | . . . . . . . . . . . . . . Total Part Build Rating . | . . . . . . . . . . . . . . Parts Repaired . | . . . . . . . . . . . . . . Time . | . . . . . . . . . . . . . . Parts Recycled . | . . . . . . . . . . . . . . Recycled Matter . | . . . . . . . . . . . . . . Retrieved Matter . | . . . . . . . . . . . . . . Retrieved Components 2 | . . . . . . . . . 2 . . . . Parts Scanalyzed . | . . . . . . . . . . . . . . Part Schematics Acquired . | . . . . . . . . . . . . . . Parts Damaged . | . . . . . . . . . . . . . . Bothacking | -11 -10 -10 -10 -9 -8 -8 -7 -7 -7 -6 -6 -6 -6 ------------ Run | Scr Mat Min Exi Min Mat Sto Fac Was Fac Fac Ext Cet Arc Used RIF Installer . | . . . . . . . . . . . . . . Robots Hacked . | . . . . . . . . . . . . . . Non-combat . | . . . . . . . . . . . . . . Combat . | . . . . . . . . . . . . . . Robot Hacks Applied . | . . . . . . . . . . . . . . Relay Couplers Released . | . . . . . . . . . . . . . . Robots Rewired . | . . . . . . . . . . . . . . Allies Hacked . | . . . . . . . . . . . . . . Hacks Repelled . | . . . . . . . . . . . . . . Allies | -11 -10 -10 -10 -9 -8 -8 -7 -7 -7 -6 -6 -6 -6 -------- Run | Scr Mat Min Exi Min Mat Sto Fac Was Fac Fac Ext Cet Arc Total Allies 2 | . . . . . . . . . 1 . 1 . . Largest Group 1 | . . . . . . . . . 1 . 1 . . Highest-Rated Group 37 | . . . . . . . . . 26 . 37 . . Highest-Rated Ally 37 | . . . . . . . . . 26 . 37 . . Total Orders 45 | . . 18 . . 27 . . . . . . . . COLLECT 18 | . . 18 . . . . . . . . . . . EXPLORE 27 | . . . . . 27 . . . . . . . . Ally Attacks 283 | . . . . . 88 189 . . . . 6 . . Total Damage 5075 | . . . . . 1748 3075 . . . . 252 . . Kills 59 | . . . . . 19 37 . . . . 3 . . Allies Corrupted . | . . . . . . . . . . . . . . Allies Melted . | . . . . . . . . . . . . . . Intel | -11 -10 -10 -10 -9 -8 -8 -7 -7 -7 -6 -6 -6 -6 ------- Run | Scr Mat Min Exi Min Mat Sto Fac Was Fac Fac Ext Cet Arc Robot Analysis Total . | . . . . . . . . . . . . . . Derelict Logs Recovered 3 | . . 2 . 1 . . . . . . . . . Drone Launches 73 | . . 16 . . 30 27 . . . . . . . Drone Recoveries 27 | . . . . . 27 . . . . . . . . Exploration | -11 -10 -10 -10 -9 -8 -8 -7 -7 -7 -6 -6 -6 -6 ------------- Run | Scr Mat Min Exi Min Mat Sto Fac Was Fac Fac Ext Cet Arc Turns Passed 3575 | 14 92 678 444 110 632 879 17 153 322 81 105 36 12 Spaces Moved 3650 | 23 180 436 470 49 247 390 42 282 931 234 262 81 23 Core 1033 | 23 180 436 318 . 1 . . . . . . 52 23 Treads 771 | . . . 152 49 246 324 . . . . . . . Legs . | . . . . . . . . . . . . . . Wheels . | . . . . . . . . . . . . . . Hover . | . . . . . . . . . . . . . . Flight 1846 | . . . . . . 66 42 282 931 234 262 29 . Fastest Speed 30 | 50 50 50 50 160 160 35 35 35 30 30 30 35 50 Average Speed 80 | 50 50 66 93 170 244 212 35 35 30 31 31 44 50 Slowest Speed 1550 | 50 50 250 200 180 1550 1015 35 35 35 32 35 50 50 Overloaded Moves . | . . . . . . . . . . . . . . Propulsion Burnouts . | . . . . . . . . . . . . . . Robots Hopped 28 | . . . . . . . . . 12 3 13 . . Cave-ins Triggered . | . . . . . . . . . . . . . . Exploration Rate (%) 50 | 3 51 99 71 12 47 90 2 94 43 10 45 63 73 Regions Visited 13 Branch Regions 7 Pre-discovered Areas 2 | . . 2 . . . . . . . . . . . Known Exits Taken 6 | . 1 . . . 1 . . . 1 1 1 1 . Unknown Exits Taken 5 | 1 . 1 1 1 . 1 . . . . . . . Scrap Searched 3 | . . 3 . . . . . . . . . . . Spaces Dug 14 | . . 1 . . . 1 . 6 6 . . . . Terrain Destroyed 14 | . . 1 . . . 1 . 6 6 . . . . Melee 14 | . . 1 . . . 1 . 6 6 . . . . Projectile . | . . . . . . . . . . . . . . AOE . | . . . . . . . . . . . . . . Actions | -11 -10 -10 -10 -9 -8 -8 -7 -7 -7 -6 -6 -6 -6 --------- Run | Scr Mat Min Exi Min Mat Sto Fac Was Fac Fac Ext Cet Arc Total 4170 | 24 181 808 474 60 275 430 44 326 940 236 269 80 23 Wait 440 | . . 359 . . 19 23 . 39 . . . . . Move 3586 | 22 179 435 469 48 246 389 42 281 907 227 238 80 23 Hop 24 | . . . . . . . . . 11 3 10 . . Pick Up 12 | . . 1 2 . 3 2 . . 3 1 . . . Fast Attach 31 | 2 1 3 1 4 3 4 . . 10 3 . . . Attach 7 | . . . 1 . . . 2 . 2 1 1 . . Detach 2 | . 1 1 . . . . . . . . . . . Swap 1 | . . . . . . . . . 1 . . . . Drop 14 | . . 1 1 1 4 6 . . . 1 . . . Fire 7 | . . . . 7 . . . . . . . . . Melee 25 | . . 7 . . . 6 . 6 6 . . . . Ram . | . . . . . . . . . . . . . . Kick . | . . . . . . . . . . . . . . Crush 1 | . . 1 . . . . . . . . . . . Escape Stasis 20 | . . . . . . . . . . . 20 . . Rewire . | . . . . . . . . . . . . . . Trap . | . . . . . . . . . . . . . . Miscellaneous . | . . . . . . . . . . . . . . Route ------- -11/Scrapyard -10/Materials (discovered 4 exits: *Mat x3 / *Min) -10/Mines (discovered 3 exits: *Mat x2 / *Exi) -10/Exiles -9/Mines -8/Materials (discovered 2 exits: [*Fac] / *Sto) -8/Storage -7/Factory -7/Waste -7/Factory (discovered 2 exits: *Fac x2) -6/Factory -6/Extension (discovered 2 exits: *Fac / *Cet) -6/Cetus -6/Archives (discovered 3 exits: *Fac / [*Hub x2]) History --------- Turn | Location | Event 6 | -11/Scrapyard | Discovered new exit (range 15) 15 | -11/Scrapyard | Entered Materials 39 | -10/Materials | Discovered new exit (range 15) 66 | -10/Materials | Identified exit to Materials 86 | -10/Materials | Identified exit to Mines 107 | -10/Materials | Entered Mines 124 | -10/Mines | Learned location of Zion (-7) 136 | -10/Mines | Found the Drone Emporium 138 | -10/Mines | Found Prototype Device 138 | -10/Mines | Identified Decoy Drone Bay 158 | -10/Mines | Discovered exit to Materials (range 64) 169 | -10/Mines | Discovered exit to Materials (range 47) 309 | -10/Mines | Build established: Mutant 348 | -10/Mines | YI-UF0 nonchalantly dropped a Grenade Launcher on the ground 381 | -10/Mines | Excavation squad dispatched 381 | -10/Mines | A large section of the Mines collapsed 631 | -10/Mines | Excavation squad dispatched 783 | -10/Mines | Deemed a non-threat by the Exiles lab entrance 783 | -10/Mines | Discovered new exit (range 5) 785 | -10/Mines | Entered Exiles 798 | -10/Exiles | Met 8R-AWN 806 | -10/Exiles | Met EX-HEX 822 | -10/Exiles | Met EX-BIN 827 | -10/Exiles | Aligned with FarCom system 828 | -10/Exiles | Given EX-Vault access code 839 | -10/Exiles | Opened EX-Vault 850 | -10/Exiles | Warned to stay clear of 0b10 Research branches 864 | -10/Exiles | Met EX-DEC 886 | -10/Exiles | Discovered new exit (range 15) 1076 | -10/Exiles | Found Army-in-a-Box 1082 | -10/Exiles | Found Modified TNC 1229 | -10/Exiles | Stole two prototypes: Modified TNC, Army-in-a-Box 1229 | -10/Exiles | Entered Mines 1234 | -9/Mines | Met a Derelict shopkeep closing up shop 1335 | -9/Mines | Discovered new exit (range 2) 1339 | -9/Mines | Entered Materials 1339 | -8/Materials | Evolved 4 slots: Utility x4 1844 | -8/Materials | Garrison activated, responded to threat 1873 | -8/Materials | Identified exit to Storage 1904 | -8/Materials | Discovered new exit (range 17) 1971 | -8/Materials | Entered Storage 2771 | -8/Storage | First assault squad dispatched 2843 | -8/Storage | Discovered new exit (range 12) 2850 | -8/Storage | Entered Factory 2850 | -7/Factory | Evolved 2 slots: Propulsion x2 2851 | -7/Factory | Identified exit to Lower Caves 2852 | -7/Factory | FarCom data flow suspended 2867 | -7/Factory | Sucked down chute 2867 | -7/Factory | Entered Waste 2882 | -7/Waste | EMP discharged 2891 | -7/Waste | Spotted C-40 Crusher 2892 | -7/Waste | Spotted C-40 Crusher 2959 | -7/Waste | Spotted C-40 Crusher 2962 | -7/Waste | Spotted C-40 Crusher 2963 | -7/Waste | Spotted C-40 Crusher 2965 | -7/Waste | Spotted C-40 Crusher 2982 | -7/Waste | EMP discharged 2982 | -7/Waste | System corruption reached 10% 3015 | -7/Waste | Discovered new exit (range 16) 3020 | -7/Waste | Identified exit to Factory 3020 | -7/Waste | Entered Factory 3233 | -7/Factory | Discovered new exit (range 14) 3252 | -7/Factory | Identified exit to Factory 3331 | -7/Factory | Discovered exit to Factory (range 19) 3335 | -7/Factory | Build established: Sprinter 3342 | -7/Factory | Entered another Factory area 3342 | -6/Factory | Evolved 2 slots: Power x1, Utility x1 3417 | -6/Factory | Discovered new exit (range 10) 3422 | -6/Factory | Identified exit to Extension 3423 | -6/Factory | Entered Extension 3445 | -6/Extension | Rescued a captive Derelict 3486 | -6/Extension | Spotted B-75 Beast 3486 | -6/Extension | Spotted B-75 Beast 3520 | -6/Extension | Discovered new exit (range 21) 3520 | -6/Extension | Discovered new exit (range 20) 3526 | -6/Extension | Identified exit to Factory 3527 | -6/Extension | Lost 9 parts (3p3n2u1w) 3527 | -6/Extension | Identified exit to Cetus 3528 | -6/Extension | Entered Cetus 3532 | -6/Cetus | Spotted Cetus Guard 3532 | -6/Cetus | Spotted Cetus Guard 3534 | -6/Cetus | Spotted Cetus Guard 3534 | -6/Cetus | Spotted Cetus Guard 3542 | -6/Cetus | Core integrity fell below 50% 3554 | -6/Cetus | Discovered new exit (range 22) 3564 | -6/Cetus | Identified exit to Archives 3564 | -6/Cetus | Entered Archives 3572 | -6/Archives | Discovered new exit (range 22) 3574 | -6/Archives | Core integrity fell below 20% 3575 | -6/Archives | Discovered new exit (range 19) 3576 | -6/Archives | Discovered exit to Factory (range 22) 3576 | -6/Archives | Destroyed by Y-64 Sentinel with Wave Gun Last Messages --------------- 03541_ Penetrated by Slug. 03545_ Machine disabled. 03546_ Penetrated by Slug. 03550_ Slug penetrates Reinforced Barrier. 03550_ Machine disabled. 03554_ EXIT=FOUND 03558_ System corrupted: Matter fused (-6). 03564_ EXIT=IDENTIFIED: ARCHIVES LOCATION=ARCHIVES GOAL=ESCAPE 03571_ Penetrated by Slug. 03572_ EXIT=FOUND 03573_ Slug penetrates Archive Hub. 03573_ Archive Hub disabled. 03573_ Penetrated by Slug. 03575_ EXIT=FOUND 03575_ Penetrated by Slug. 03575_ Archive Terminal disabled. 03575_ Penetrated by Slug. 03576_ EXIT=FOUND: FACTORY Map ----- +----------------------------------------------------+ | ??????????????????????????????????????????????? | | ??????????????????????????????????????????????? | | ??????????????????????????????????????????????? | | ??????????????????????????????????????????????? | | ???????????????????????????